Workbook

Sheet Análise de vendas anual
B3: Mês | C3: Faturamento | D3: Custo total da empresa | E3: Lucro
B4: Julho | C4: ='Controle de Pedidos - Julho'!G36 -> 3450 | D4: 150 | E4: =C4-D4 -> 3300
B5: agosto | C5: ='Controle de Pedidos - Agosto'!G36 -> 5200 | D5: 400 | E5: 4800
B6: setembro | C6: ='Controle de Pedidos - Setembro'!G36 -> 2600 | D6: ='Custo da Empresa'!E36 -> 400 | E6: 2200
B7: outubro | C7: =' Controle de Pedidos - Outubro'!G36 -> 3200 | D7: 200 | E7: 3000
B8: novembro | C8: ='Controle de Pedidos - Novembro'!G36 -> 2000 | D8: 400 | E8: 1600
B9: dezembro | C9: ='Controle de Pedidos - Dezembro'!G36 -> 4100 | D9: 500 | E9: 3600
B11: Total | C11: =SUM(C4:C10) -> 20550 | D11: 2050 | E11: 18500

Sheet Custo da Empresa
C1: CONTROLE DE CUSTOS
A3: Mês | B3: Data | C3: Tipo de Custo | D3: Descrição | E3: Valor | F3: Status de pagamento | G3: Observações
A4: julho | B4: xx/xx/xxxx | C4: Aluguel | E4: 300
A5: julho | C5: Compra de estoque | E5: 500
A6: julho | C6: Conta de energia | E6: 80
A7: julho | C7: Marketing | E7: 50
A16: Total JULHO | E16: =SUM(E4:E7) -> 930
A18: agosto | C18: Aluguel | E18: 300
A19: agosto | C19: Compra de estoque | E19: 500
A20: agosto | C20: Conta de energia | E20: 100
A21: agosto | C21: Marketing | E21: 50
A22: agosto
A26: Total agosto | E26: =SUM(E18:E25) -> 950
A28: setembro | C28: Aluguel | E28: 300
A29: setembro | C29: Compra de estoque | E29: 0
A30: setembro | C30: Conta de energia | E30: 80
A31: setembro | C31: Marketing | E31: 20
A32: setembro
A33: setembro
A34: setembro
A36: Total Setembro | E36: =SUM(E28:E35) -> 400
A38: outubro | C38: Aluguel | E38: 300
A39: outubro | C39: Compra de estoque | E39: 500
A40: outubro | C40: Conta de energia | E40: 50
A41: outubro | C41: Marketing | E41: 50
A42: outubro
A43: outubro
A45: Total Outubro | E45: =SUM(E37:E44) -> 900
A47: novembro
A48: novembro | C48: Aluguel | E48: 300
A49: novembro | C49: Compra de estoque | E49: 0
A50: novembro | C50: Energica | E50: 100
A51: novembro | C51: Marketing | E51: 150
A53: Total Novembro | E53: =SUM(E47:E52) -> 550
A55: dezembro | C55: Aluguel | E55: 0
A56: dezembro | C56: Compra de estoque | E56: 200
A57: dezembro | C57: Energica | E57: 70
A58: dezembro | C58: Marketing | E58: 0
A60: Total dezembro | E60: =SUM(E54:E59) -> 270

Sheet Controle de Estoque
D1: CONTROLE DE ESTOQUE
A3: Identificação do Item | B3: Nome do item | C3: Tipo | D3: Tamanho | E3: Quantidade comprada | F3: Quantidade vendida | G3: Quantidade em estoque | H3: Valor unitário da peça (R$) | I3: Faturamento por peça (R$) | J3: Status do estoque | K3: Observações
E4: 100 | F4: 45 | G4: =E4-F4 -> 55 | H4: 100 | I4: =H4*F4 -> 4500 | J4: Em estoque
E5: 50 | F5: 40 | G5: 10 | H5: 79.9 | I5: 3196 | J5: Em estoque
E6: 75 | F6: 35 | G6: 40 | H6: 39.9 | I6: 1396.5 | J6: Em estoque
G7: 0 | I7: 0 | J7: Em estoque
G8: 0 | I8: 0 | J8: Em estoque
G9: 0 | I9: 0 | J9: Em estoque
G10: 0 | I10: 0 | J10: Em estoque
G11: 0 | I11: 0 | J11: Em estoque
G12: 0 | I12: 0 | J12: Em estoque
G13: 0 | I13: 0 | J13: Em estoque
G14: 0 | I14: 0 | J14: Em estoque
G15: 0 | I15: 0 | J15: Em estoque
G16: 0 | I16: 0 | J16: Em estoque
I17: 0 | J17: Em estoque
I18: 0 | J18: Em estoque
I19: 0 | J19: Em estoque
I20: 0 | J20: Em estoque
I21: 0 | J21: Em estoque
I22: 0 | J22: Em estoque
I23: 0 | J23: Em estoque
I24: 0 | J24: Em estoque
I25: 0 | J25: Em estoque
I26: 0 | J26: Em estoque
I27: 0 | J27: Em estoque
I28: 0 | J28: Em estoque
I29: 0 | J29: Em estoque
I30: 0 | J30: Em estoque
I31: 0 | J31: Em estoque
I32: 0 | J32: Em estoque
I33: 0 | J33: Em estoque
I34: 0 | J34: Em estoque
I35: 0 | J35: Em estoque
I36: 0 | J36: Em estoque
I37: 0 | J37: Em estoque
I38: 0 | J38: Em estoque
I39: 0 | J39: Em estoque
I40: 0 | J40: Em estoque
I41: 0 | J41: Em estoque
I42: 0 | J42: Em estoque
I43: 0 | J43: Em estoque
I44: 0 | J44: Em estoque
I45: 0 | J45: Em estoque
I46: 0 | J46: Em estoque
I47: 0 | J47: Em estoque
I48: 0 | J48: Em estoque
I49: 0 | J49: Em estoque
I50: 0 | J50: Em estoque
I51: 0 | J51: Em estoque
I52: 0 | J52: Em estoque
I53: 0 | J53: Em estoque
I54: 0 | J54: Em estoque
I55: 0 | J55: Em estoque
I56: 0 | J56: Em estoque
I57: 0 | J57: Em estoque
I58: 0 | J58: Em estoque
I59: 0 | J59: Em estoque
I60: 0 | J60: Em estoque
I61: 0 | J61: Em estoque
I62: 0 | J62: Em estoque
I63: 0 | J63: Em estoque
I64: 0 | J64: Em estoque
I65: 0 | J65: Em estoque
I66: 0 | J66: Em estoque
I67: 0 | J67: Em estoque
I68: 0 | J68: Em estoque
I69: 0 | J69: Em estoque
I70: 0 | J70: Em estoque
I71: 0 | J71: Em estoque
I72: 0 | J72: Em estoque
I73: 0 | J73: Em estoque
I74: 0 | J74: Em estoque
I75: 0 | J75: Em estoque
I76: 0 | J76: Em estoque
I77: 0 | J77: Em estoque
I78: 0 | J78: Em estoque
I79: 0 | J79: Em estoque
I80: 0 | J80: Em estoque
I81: 0 | J81: Em estoque
I82: 0 | J82: Em estoque
I83: 0 | J83: Em estoque
I84: 0 | J84: Em estoque
I85: 0 | J85: Em estoque
I86: 0 | J86: Em estoque
I87: 0 | J87: Em estoque
I88: 0 | J88: Em estoque
I89: 0 | J89: Em estoque
I90: 0 | J90: Em estoque
I91: 0 | J91: Em estoque
I92: 0 | J92: Em estoque
I93: 0 | J93: Em estoque
I94: 0 | J94: Em estoque
I95: 0 | J95: Em estoque
I96: 0 | J96: Em estoque
I97: 0 | J97: Em estoque
I98: 0 | J98: Em estoque
I99: 0 | J99: Em estoque
I100: 0 | J100: Em estoque
I101: 0 | J101: Em estoque
I102: 0 | J102: Em estoque
I103: 0 | J103: Em estoque
I104: 0 | J104: Em estoque
I105: 0 | J105: Em estoque
I106: 0 | J106: Em estoque
I107: 0 | J107: Em estoque
I108: 0 | J108: Em estoque
I109: 0 | J109: Em estoque
I110: 0 | J110: Em estoque
I111: 0 | J111: Em estoque
I112: 0 | J112: Em estoque
I113: 0 | J113: Em estoque

Sheet Fornecedores
D1: FORNECEDORES
A3: Nome do fornecedor | B3: Tipo de produto | C3: Nome do responsável | D3: Telefone | E3: E-mail | F3: Endereço | G3: Confiabilidade
G4: 4 estrelas

Sheet Clientes
D1: LISTA DE CLIENTE
A3: Número de clientes | B3: Nome | C3: Telefone | D3: E-mail | E3: Data de aniversário | F3: Cliente desde:
A4: 1
A5: 2
A6: 3
A7: 4
A8: 5
A9: 6
A10: 7
A11: 8
A12: 9
A13: 10
A14: 11
A15: 12
A16: 13
A17: 14
A18: 15
A19: 16
A20: 17
A21: 18
A22: 19
A23: 20
A24: 21
A25: 22
A26: 23
A27: 24
A28: 25
A29: 26
A30: 27
A31: 28
A32: 29
A33: 30
A34: 31
A35: 32
A36: 33
A37: 34
A38: 35
A39: 36
A40: 37
A41: 38
A42: 39
A43: 40
A44: 41
A45: 42
A46: 43
A47: 44
A48: 45
A49: 46
A50: 47
A51: 48
A52: 49
A53: 50
A54: 51
A55: 52
A56: 53
A57: 54
A58: 55
A59: 56
A60: 57
A61: 58
A62: 59
A63: 60
A64: 61
A65: 62
A66: 63
A67: 64
A68: 65
A69: 66
A70: 67
A71: 68
A72: 69
A73: 70
A74: 71
A75: 72
A76: 73
A77: 74
A78: 75
A79: 76
A80: 77
A81: 78
A82: 79
A83: 80
A84: 81
A85: 82
A86: 83
A87: 84
A88: 85
A89: 86
A90: 87
A91: 88
A92: 89
A93: 90
A94: 91
A95: 92
A96: 93
A97: 94
A98: 95
A99: 96
A100: 97
A101: 98
A102: 99
A103: 100
A104: 101
A105: 102
A106: 103
A107: 104
A108: 105
A109: 106
A110: 107
A111: 108
A112: 109
A113: 110
A114: 111
A115: 112
A116: 113
A117: 114
A118: 115
A119: 116
A120: 117
A121: 118
A122: 119
A123: 120
A124: 121
A125: 122
A126: 123
A127: 124
A128: 125
A129: 126
A130: 127
A131: 128
A132: 129
A133: 130
A134: 131
A135: 132
A136: 133
A137: 134
A138: 135
A139: 136
A140: 137
A141: 138
A142: 139
A143: 140
A144: 141
A145: 142
A146: 143
A147: 144
A148: 145
A149: 146
A150: 147
A151: 148
A152: 149
A153: 150
A154: 151
A155: 152
A156: 153
A157: 154
A158: 155
A159: 156
A160: 157
A161: 158
A162: 159
A163: 160
A164: 161
A165: 162
A166: 163
A167: 164
A168: 165
A169: 166
A170: 167
A171: 168
A172: 169
A173: 170
A174: 171
A175: 172
A176: 173
A177: 174
A178: 175
A179: 176
A180: 177
A181: 178
A182: 179
A183: 180
A184: 181
A185: 182
A186: 183
A187: 184
A188: 185
A189: 186
A190: 187
A191: 188
A192: 189
A193: 190
A194: 191
A195: 192
A196: 193
A197: 194
A198: 195
A199: 196
A200: 197
A201: 198
... 21 more rows

Sheet Controle de Pedidos - Julho
F1: CONTROLE DE PEDIDOS
A3: Mês | B3: Data do pedido | C3: Nome da cliente | D3: Telefone | E3: E-mail | F3: Descrição do Pedido | G3: Valor do pedido (R$) | H3: Status do pedido | I3: Plataforma de pedido | J3: Data do pagamento | K3: Status do pagamento
A4: julho | B4: dd/mm/aaa | G4: 1000 | H4: Aceito | I4: Telefone | J4: dd/mm/aaa | K4: A receber
A5: julho | B5: dd/mm/aaa | G5: 1500 | J5: dd/mm/aaa
A6: julho | B6: dd/mm/aaa | G6: 800 | J6: dd/mm/aaa
A7: julho | B7: dd/mm/aaa | G7: 70 | J7: dd/mm/aaa
A8: julho | B8: dd/mm/aaa | G8: 80 | J8: dd/mm/aaa
A9: julho | B9: dd/mm/aaa | J9: dd/mm/aaa
A10: julho | B10: dd/mm/aaa | J10: dd/mm/aaa
A11: julho | B11: dd/mm/aaa | J11: dd/mm/aaa
A12: julho | B12: dd/mm/aaa | J12: dd/mm/aaa
A13: julho | B13: dd/mm/aaa | J13: dd/mm/aaa
A14: julho | B14: dd/mm/aaa | J14: dd/mm/aaa
A15: julho | B15: dd/mm/aaa | J15: dd/mm/aaa
A16: julho | B16: dd/mm/aaa | J16: dd/mm/aaa
A17: julho | B17: dd/mm/aaa | J17: dd/mm/aaa
A18: julho | B18: dd/mm/aaa | J18: dd/mm/aaa
A19: julho | B19: dd/mm/aaa | J19: dd/mm/aaa
A20: julho | B20: dd/mm/aaa | J20: dd/mm/aaa
A21: julho | B21: dd/mm/aaa | J21: dd/mm/aaa
A22: julho | B22: dd/mm/aaa | J22: dd/mm/aaa
A23: julho | B23: dd/mm/aaa | J23: dd/mm/aaa
A24: julho | B24: dd/mm/aaa | J24: dd/mm/aaa
A25: julho | B25: dd/mm/aaa | J25: dd/mm/aaa
A26: julho | B26: dd/mm/aaa | J26: dd/mm/aaa
A27: julho | B27: dd/mm/aaa | J27: dd/mm/aaa
A28: julho | B28: dd/mm/aaa | J28: dd/mm/aaa
A29: julho | B29: dd/mm/aaa | J29: dd/mm/aaa
A30: julho | B30: dd/mm/aaa | J30: dd/mm/aaa
A31: julho | B31: dd/mm/aaa | J31: dd/mm/aaa
A32: julho | B32: dd/mm/aaa | J32: dd/mm/aaa
A33: julho | B33: dd/mm/aaa | J33: dd/mm/aaa
B34: dd/mm/aaa | J34: dd/mm/aaa
A36: Total | G36: =SUM(G4:G35) -> 3450

Sheet Controle de Pedidos - Agosto
F1: CONTROLE DE PEDIDOS
A3: Mês | B3: Data do pedido | C3: Nome da cliente | D3: Telefone | E3: E-mail | F3: Descrição do Pedido | G3: Valor do pedido (R$) | H3: Status do pedido | I3: Plataforma de pedido | J3: Data do pagamento | K3: Status do pagamento
A4: julho | B4: dd/mm/aaa | G4: 1500 | H4: Aceito | I4: Telefone | J4: dd/mm/aaa | K4: A receber
A5: julho | B5: dd/mm/aaa | G5: 2000 | J5: dd/mm/aaa
A6: julho | B6: dd/mm/aaa | G6: 800 | J6: dd/mm/aaa
A7: julho | B7: dd/mm/aaa | G7: 500 | J7: dd/mm/aaa
A8: julho | B8: dd/mm/aaa | G8: 400 | J8: dd/mm/aaa
A9: julho | B9: dd/mm/aaa | J9: dd/mm/aaa
A10: julho | B10: dd/mm/aaa | J10: dd/mm/aaa
A11: julho | B11: dd/mm/aaa | J11: dd/mm/aaa
A12: julho | B12: dd/mm/aaa | J12: dd/mm/aaa
A13: julho | B13: dd/mm/aaa | J13: dd/mm/aaa
A14: julho | B14: dd/mm/aaa | J14: dd/mm/aaa
A15: julho | B15: dd/mm/aaa | J15: dd/mm/aaa
A16: julho | B16: dd/mm/aaa | J16: dd/mm/aaa
A17: julho | B17: dd/mm/aaa | J17: dd/mm/aaa
A18: julho | B18: dd/mm/aaa | J18: dd/mm/aaa
A19: julho | B19: dd/mm/aaa | J19: dd/mm/aaa
A20: julho | B20: dd/mm/aaa | J20: dd/mm/aaa
A21: julho | B21: dd/mm/aaa | J21: dd/mm/aaa
A22: julho | B22: dd/mm/aaa | J22: dd/mm/aaa
A23: julho | B23: dd/mm/aaa | J23: dd/mm/aaa
A24: julho | B24: dd/mm/aaa | J24: dd/mm/aaa
A25: julho | B25: dd/mm/aaa | J25: dd/mm/aaa
A26: julho | B26: dd/mm/aaa | J26: dd/mm/aaa
A27: julho | B27: dd/mm/aaa | J27: dd/mm/aaa
A28: julho | B28: dd/mm/aaa | J28: dd/mm/aaa
A29: julho | B29: dd/mm/aaa | J29: dd/mm/aaa
A30: julho | B30: dd/mm/aaa | J30: dd/mm/aaa
A31: julho | B31: dd/mm/aaa | J31: dd/mm/aaa
A32: julho | B32: dd/mm/aaa | J32: dd/mm/aaa
A33: julho | B33: dd/mm/aaa | J33: dd/mm/aaa
B34: dd/mm/aaa | J34: dd/mm/aaa
A36: Total | G36: =SUM(G4:G35) -> 5200

Sheet Controle de Pedidos - Setembro
F1: CONTROLE DE PEDIDOS
A3: Mês | B3: Data do pedido | C3: Nome da cliente | D3: Telefone | E3: E-mail | F3: Descrição do Pedido | G3: Valor do pedido (R$) | H3: Status do pedido | I3: Plataforma de pedido | J3: Data do pagamento | K3: Status do pagamento
A4: julho | B4: dd/mm/aaa | G4: 900 | H4: Aceito | I4: Telefone | J4: dd/mm/aaa | K4: A receber
A5: julho | B5: dd/mm/aaa | G5: 400 | J5: dd/mm/aaa
A6: julho | B6: dd/mm/aaa | G6: 500 | J6: dd/mm/aaa
A7: julho | B7: dd/mm/aaa | G7: 700 | J7: dd/mm/aaa
A8: julho | B8: dd/mm/aaa | G8: 100 | J8: dd/mm/aaa
A9: julho | B9: dd/mm/aaa | J9: dd/mm/aaa
A10: julho | B10: dd/mm/aaa | J10: dd/mm/aaa
A11: julho | B11: dd/mm/aaa | J11: dd/mm/aaa
A12: julho | B12: dd/mm/aaa | J12: dd/mm/aaa
A13: julho | B13: dd/mm/aaa | J13: dd/mm/aaa
A14: julho | B14: dd/mm/aaa | J14: dd/mm/aaa
A15: julho | B15: dd/mm/aaa | J15: dd/mm/aaa
A16: julho | B16: dd/mm/aaa | J16: dd/mm/aaa
A17: julho | B17: dd/mm/aaa | J17: dd/mm/aaa
A18: julho | B18: dd/mm/aaa | J18: dd/mm/aaa
A19: julho | B19: dd/mm/aaa | J19: dd/mm/aaa
A20: julho | B20: dd/mm/aaa | J20: dd/mm/aaa
A21: julho | B21: dd/mm/aaa | J21: dd/mm/aaa
A22: julho | B22: dd/mm/aaa | J22: dd/mm/aaa
A23: julho | B23: dd/mm/aaa | J23: dd/mm/aaa
A24: julho | B24: dd/mm/aaa | J24: dd/mm/aaa
A25: julho | B25: dd/mm/aaa | J25: dd/mm/aaa
A26: julho | B26: dd/mm/aaa | J26: dd/mm/aaa
A27: julho | B27: dd/mm/aaa | J27: dd/mm/aaa
A28: julho | B28: dd/mm/aaa | J28: dd/mm/aaa
A29: julho | B29: dd/mm/aaa | J29: dd/mm/aaa
A30: julho | B30: dd/mm/aaa | J30: dd/mm/aaa
A31: julho | B31: dd/mm/aaa | J31: dd/mm/aaa
A32: julho | B32: dd/mm/aaa | J32: dd/mm/aaa
A33: julho | B33: dd/mm/aaa | J33: dd/mm/aaa
B34: dd/mm/aaa | J34: dd/mm/aaa
A36: Total | G36: =SUM(G4:G35) -> 2600

Sheet Controle de Pedidos - Outubro
F1: CONTROLE DE PEDIDOS
A3: Mês | B3: Data do pedido | C3: Nome da cliente | D3: Telefone | E3: E-mail | F3: Descrição do Pedido | G3: Valor do pedido (R$) | H3: Status do pedido | I3: Plataforma de pedido | J3: Data do pagamento | K3: Status do pagamento
A4: julho | B4: dd/mm/aaa | G4: 100 | H4: Aceito | I4: Telefone | J4: dd/mm/aaa | K4: A receber
A5: julho | B5: dd/mm/aaa | G5: 400 | J5: dd/mm/aaa
A6: julho | B6: dd/mm/aaa | G6: 500 | J6: dd/mm/aaa
A7: julho | B7: dd/mm/aaa | G7: 1500 | J7: dd/mm/aaa
A8: julho | B8: dd/mm/aaa | G8: 700 | J8: dd/mm/aaa
A9: julho | B9: dd/mm/aaa | J9: dd/mm/aaa
A10: julho | B10: dd/mm/aaa | J10: dd/mm/aaa
A11: julho | B11: dd/mm/aaa | J11: dd/mm/aaa
A12: julho | B12: dd/mm/aaa | J12: dd/mm/aaa
A13: julho | B13: dd/mm/aaa | J13: dd/mm/aaa
A14: julho | B14: dd/mm/aaa | J14: dd/mm/aaa
A15: julho | B15: dd/mm/aaa | J15: dd/mm/aaa
A16: julho | B16: dd/mm/aaa | J16: dd/mm/aaa
A17: julho | B17: dd/mm/aaa | J17: dd/mm/aaa
A18: julho | B18: dd/mm/aaa | J18: dd/mm/aaa
A19: julho | B19: dd/mm/aaa | J19: dd/mm/aaa
A20: julho | B20: dd/mm/aaa | J20: dd/mm/aaa
A21: julho | B21: dd/mm/aaa | J21: dd/mm/aaa
A22: julho | B22: dd/mm/aaa | J22: dd/mm/aaa
A23: julho | B23: dd/mm/aaa | J23: dd/mm/aaa
A24: julho | B24: dd/mm/aaa | J24: dd/mm/aaa
A25: julho | B25: dd/mm/aaa | J25: dd/mm/aaa
A26: julho | B26: dd/mm/aaa | J26: dd/mm/aaa
A27: julho | B27: dd/mm/aaa | J27: dd/mm/aaa
A28: julho | B28: dd/mm/aaa | J28: dd/mm/aaa
A29: julho | B29: dd/mm/aaa | J29: dd/mm/aaa
A30: julho | B30: dd/mm/aaa | J30: dd/mm/aaa
A31: julho | B31: dd/mm/aaa | J31: dd/mm/aaa
A32: julho | B32: dd/mm/aaa | J32: dd/mm/aaa
A33: julho | B33: dd/mm/aaa | J33: dd/mm/aaa
B34: dd/mm/aaa | J34: dd/mm/aaa
A36: Total | G36: =SUM(G4:G35) -> 3200

Sheet Controle de Pedidos - Novembro
F1: CONTROLE DE PEDIDOS
A3: Mês | B3: Data do pedido | C3: Nome da cliente | D3: Telefone | E3: E-mail | F3: Descrição do Pedido | G3: Valor do pedido (R$) | H3: Status do pedido | I3: Plataforma de pedido | J3: Data do pagamento | K3: Status do pagamento
A4: julho | B4: dd/mm/aaa | G4: 800 | H4: Aceito | I4: Telefone | J4: dd/mm/aaa | K4: A receber
A5: julho | B5: dd/mm/aaa | G5: 400 | J5: dd/mm/aaa
A6: julho | B6: dd/mm/aaa | G6: 100 | J6: dd/mm/aaa
A7: julho | B7: dd/mm/aaa | G7: 200 | J7: dd/mm/aaa
A8: julho | B8: dd/mm/aaa | G8: 500 | J8: dd/mm/aaa
A9: julho | B9: dd/mm/aaa | J9: dd/mm/aaa
A10: julho | B10: dd/mm/aaa | J10: dd/mm/aaa
A11: julho | B11: dd/mm/aaa | J11: dd/mm/aaa
A12: julho | B12: dd/mm/aaa | J12: dd/mm/aaa
A13: julho | B13: dd/mm/aaa | J13: dd/mm/aaa
A14: julho | B14: dd/mm/aaa | J14: dd/mm/aaa
A15: julho | B15: dd/mm/aaa | J15: dd/mm/aaa
A16: julho | B16: dd/mm/aaa | J16: dd/mm/aaa
A17: julho | B17: dd/mm/aaa | J17: dd/mm/aaa
A18: julho | B18: dd/mm/aaa | J18: dd/mm/aaa
A19: julho | B19: dd/mm/aaa | J19: dd/mm/aaa
A20: julho | B20: dd/mm/aaa | J20: dd/mm/aaa
A21: julho | B21: dd/mm/aaa | J21: dd/mm/aaa
A22: julho | B22: dd/mm/aaa | J22: dd/mm/aaa
A23: julho | B23: dd/mm/aaa | J23: dd/mm/aaa
A24: julho | B24: dd/mm/aaa | J24: dd/mm/aaa
A25: julho | B25: dd/mm/aaa | J25: dd/mm/aaa
A26: julho | B26: dd/mm/aaa | J26: dd/mm/aaa
A27: julho | B27: dd/mm/aaa | J27: dd/mm/aaa
A28: julho | B28: dd/mm/aaa | J28: dd/mm/aaa
A29: julho | B29: dd/mm/aaa | J29: dd/mm/aaa
A30: julho | B30: dd/mm/aaa | J30: dd/mm/aaa
A31: julho | B31: dd/mm/aaa | J31: dd/mm/aaa
A32: julho | B32: dd/mm/aaa | J32: dd/mm/aaa
A33: julho | B33: dd/mm/aaa | J33: dd/mm/aaa
B34: dd/mm/aaa | J34: dd/mm/aaa
A36: Total | G36: =SUM(G4:G35) -> 2000

Sheet Controle de Pedidos - Dezembro
F1: CONTROLE DE PEDIDOS
A3: Mês | B3: Data do pedido | C3: Nome da cliente | D3: Telefone | E3: E-mail | F3: Descrição do Pedido | G3: Valor do pedido (R$) | H3: Status do pedido | I3: Plataforma de pedido | J3: Data do pagamento | K3: Status do pagamento
A4: julho | B4: dd/mm/aaa | G4: 1700 | H4: Aceito | I4: Telefone | J4: dd/mm/aaa | K4: A receber
A5: julho | B5: dd/mm/aaa | G5: 400 | J5: dd/mm/aaa
A6: julho | B6: dd/mm/aaa | G6: 800 | J6: dd/mm/aaa
A7: julho | B7: dd/mm/aaa | G7: 400 | J7: dd/mm/aaa
A8: julho | B8: dd/mm/aaa | G8: 800 | J8: dd/mm/aaa
A9: julho | B9: dd/mm/aaa | J9: dd/mm/aaa
A10: julho | B10: dd/mm/aaa | J10: dd/mm/aaa
A11: julho | B11: dd/mm/aaa | J11: dd/mm/aaa
A12: julho | B12: dd/mm/aaa | J12: dd/mm/aaa
A13: julho | B13: dd/mm/aaa | J13: dd/mm/aaa
A14: julho | B14: dd/mm/aaa | J14: dd/mm/aaa
A15: julho | B15: dd/mm/aaa | J15: dd/mm/aaa
A16: julho | B16: dd/mm/aaa | J16: dd/mm/aaa
A17: julho | B17: dd/mm/aaa | J17: dd/mm/aaa
A18: julho | B18: dd/mm/aaa | J18: dd/mm/aaa
A19: julho | B19: dd/mm/aaa | J19: dd/mm/aaa
A20: julho | B20: dd/mm/aaa | J20: dd/mm/aaa
A21: julho | B21: dd/mm/aaa | J21: dd/mm/aaa
A22: julho | B22: dd/mm/aaa | J22: dd/mm/aaa
A23: julho | B23: dd/mm/aaa | J23: dd/mm/aaa
A24: julho | B24: dd/mm/aaa | J24: dd/mm/aaa
A25: julho | B25: dd/mm/aaa | J25: dd/mm/aaa
A26: julho | B26: dd/mm/aaa | J26: dd/mm/aaa
A27: julho | B27: dd/mm/aaa | J27: dd/mm/aaa
A28: julho | B28: dd/mm/aaa | J28: dd/mm/aaa
A29: julho | B29: dd/mm/aaa | J29: dd/mm/aaa
A30: julho | B30: dd/mm/aaa | J30: dd/mm/aaa
A31: julho | B31: dd/mm/aaa | J31: dd/mm/aaa
A32: julho | B32: dd/mm/aaa | J32: dd/mm/aaa
A33: julho | B33: dd/mm/aaa | J33: dd/mm/aaa
B34: dd/mm/aaa | J34: dd/mm/aaa
A36: Total | G36: =SUM(G4:G35) -> 4100

Sheet Planilha1 (hidden)
F2: Recebimentos | G2: Pagamentos | H2: Saldo
E3: Atrasado | F3: =SUMIFS(Recebimentos!$C$9:$C$125300,Recebimentos!$E$9:$E$125300,"",Recebimentos!$F$9:$F$125300,"ATR") -> #N/A | G3: =SUMIFS(Pagamentos!$C$9:$C$125300,Pagamentos!$E$9:$E$125300,"",Pagamentos!$F$9:$F$125300,"ATR") -> #N/A | H3: =F3-G3 -> #N/A
C4: =MONTH(TODAY()) -> 7 | D4: =YEAR(TODAY()) -> 2024 | E4: =CONCAT(C4,"/",D4) -> #N/A | F4: =SUMIFS(Recebimentos!$C$9:$C$30000,Recebimentos!$G$9:$G$30000,Planilha1!C4,Recebimentos!$H$9:$H$30000,Planilha1!D4,Recebimentos!$E$9:$E$30000,"") -> #N/A | G4: =SUMIFS(Pagamentos!$C$9:$C$30000,Pagamentos!$G$9:$G$30000,Planilha1!C4,Pagamentos!$H$9:$H$30000,Planilha1!D4,Pagamentos!$E$9:$E$30000,"") -> #N/A | H4: #N/A
C5: =IF(C4=12,1,C4+1) -> 8 | D5: =IF(C5=1,D4+1,D4) -> 2024 | E5: #N/A | F5: =SUMIFS(Recebimentos!$C$9:$C$30000,Recebimentos!$G$9:$G$30000,Planilha1!C5,Recebimentos!$H$9:$H$30000,Planilha1!D5,Recebimentos!$E$9:$E$30000,"") -> #N/A | G5: =SUMIFS(Pagamentos!$C$9:$C$30000,Pagamentos!$G$9:$G$30000,Planilha1!C5,Pagamentos!$H$9:$H$30000,Planilha1!D5,Pagamentos!$E$9:$E$30000,"") -> #N/A | H5: #N/A
C6: 9 | D6: 2024 | E6: #N/A | F6: =SUMIFS(Recebimentos!$C$9:$C$30000,Recebimentos!$G$9:$G$30000,Planilha1!C6,Recebimentos!$H$9:$H$30000,Planilha1!D6,Recebimentos!$E$9:$E$30000,"") -> #N/A | G6: =SUMIFS(Pagamentos!$C$9:$C$30000,Pagamentos!$G$9:$G$30000,Planilha1!C6,Pagamentos!$H$9:$H$30000,Planilha1!D6,Pagamentos!$E$9:$E$30000,"") -> #N/A | H6: #N/A
C7: 10 | D7: 2024 | E7: #N/A | F7: =SUMIFS(Recebimentos!$C$9:$C$30000,Recebimentos!$G$9:$G$30000,Planilha1!C7,Recebimentos!$H$9:$H$30000,Planilha1!D7,Recebimentos!$E$9:$E$30000,"") -> #N/A | G7: =SUMIFS(Pagamentos!$C$9:$C$30000,Pagamentos!$G$9:$G$30000,Planilha1!C7,Pagamentos!$H$9:$H$30000,Planilha1!D7,Pagamentos!$E$9:$E$30000,"") -> #N/A | H7: #N/A
C8: 11 | D8: 2024 | E8: #N/A | F8: =SUMIFS(Recebimentos!$C$9:$C$30000,Recebimentos!$G$9:$G$30000,Planilha1!C8,Recebimentos!$H$9:$H$30000,Planilha1!D8,Recebimentos!$E$9:$E$30000,"") -> #N/A | G8: =SUMIFS(Pagamentos!$C$9:$C$30000,Pagamentos!$G$9:$G$30000,Planilha1!C8,Pagamentos!$H$9:$H$30000,Planilha1!D8,Pagamentos!$E$9:$E$30000,"") -> #N/A | H8: #N/A
C9: 12 | D9: 2024 | E9: #N/A | F9: =SUMIFS(Recebimentos!$C$9:$C$30000,Recebimentos!$G$9:$G$30000,Planilha1!C9,Recebimentos!$H$9:$H$30000,Planilha1!D9,Recebimentos!$E$9:$E$30000,"") -> #N/A | G9: =SUMIFS(Pagamentos!$C$9:$C$30000,Pagamentos!$G$9:$G$30000,Planilha1!C9,Pagamentos!$H$9:$H$30000,Planilha1!D9,Pagamentos!$E$9:$E$30000,"") -> #N/A | H9: #N/A
C10: 1 | D10: 2025 | E10: #N/A | F10: =SUMIFS(Recebimentos!$C$9:$C$30000,Recebimentos!$G$9:$G$30000,Planilha1!C10,Recebimentos!$H$9:$H$30000,Planilha1!D10,Recebimentos!$E$9:$E$30000,"") -> #N/A | G10: =SUMIFS(Pagamentos!$C$9:$C$30000,Pagamentos!$G$9:$G$30000,Planilha1!C10,Pagamentos!$H$9:$H$30000,Planilha1!D10,Pagamentos!$E$9:$E$30000,"") -> #N/A | H10: #N/A
C11: 2 | D11: 2025 | E11: #N/A | F11: =SUMIFS(Recebimentos!$C$9:$C$30000,Recebimentos!$G$9:$G$30000,Planilha1!C11,Recebimentos!$H$9:$H$30000,Planilha1!D11,Recebimentos!$E$9:$E$30000,"") -> #N/A | G11: =SUMIFS(Pagamentos!$C$9:$C$30000,Pagamentos!$G$9:$G$30000,Planilha1!C11,Pagamentos!$H$9:$H$30000,Planilha1!D11,Pagamentos!$E$9:$E$30000,"") -> #N/A | H11: #N/A
C12: 3 | D12: 2025 | E12: #N/A | F12: =SUMIFS(Recebimentos!$C$9:$C$30000,Recebimentos!$G$9:$G$30000,Planilha1!C12,Recebimentos!$H$9:$H$30000,Planilha1!D12,Recebimentos!$E$9:$E$30000,"") -> #N/A | G12: =SUMIFS(Pagamentos!$C$9:$C$30000,Pagamentos!$G$9:$G$30000,Planilha1!C12,Pagamentos!$H$9:$H$30000,Planilha1!D12,Pagamentos!$E$9:$E$30000,"") -> #N/A | H12: #N/A
C13: 4 | D13: 2025 | E13: #N/A | F13: =SUMIFS(Recebimentos!$C$9:$C$30000,Recebimentos!$G$9:$G$30000,Planilha1!C13,Recebimentos!$H$9:$H$30000,Planilha1!D13,Recebimentos!$E$9:$E$30000,"") -> #N/A | G13: =SUMIFS(Pagamentos!$C$9:$C$30000,Pagamentos!$G$9:$G$30000,Planilha1!C13,Pagamentos!$H$9:$H$30000,Planilha1!D13,Pagamentos!$E$9:$E$30000,"") -> #N/A | H13: #N/A
C14: 5 | D14: 2025 | E14: #N/A | F14: =SUMIFS(Recebimentos!$C$9:$C$30000,Recebimentos!$G$9:$G$30000,Planilha1!C14,Recebimentos!$H$9:$H$30000,Planilha1!D14,Recebimentos!$E$9:$E$30000,"") -> #N/A | G14: =SUMIFS(Pagamentos!$C$9:$C$30000,Pagamentos!$G$9:$G$30000,Planilha1!C14,Pagamentos!$H$9:$H$30000,Planilha1!D14,Pagamentos!$E$9:$E$30000,"") -> #N/A | H14: #N/A
C15: 6 | D15: 2025 | E15: #N/A | F15: =SUMIFS(Recebimentos!$C$9:$C$30000,Recebimentos!$G$9:$G$30000,Planilha1!C15,Recebimentos!$H$9:$H$30000,Planilha1!D15,Recebimentos!$E$9:$E$30000,"") -> #N/A | G15: =SUMIFS(Pagamentos!$C$9:$C$30000,Pagamentos!$G$9:$G$30000,Planilha1!C15,Pagamentos!$H$9:$H$30000,Planilha1!D15,Pagamentos!$E$9:$E$30000,"") -> #N/A | H15: #N/A
